{"text_format":"2","workbook":"xlsx","n_sheets":8,"sheets":["ITEM 2 - SERVIÇO","Resumo do Orçamento","Orçamento Sintético","Cronograma Físico-financeiro","Curva ABC de Serviços"," BDI"," BDI DIF","Encargos Sociais"],"not_rendered":{"charts":0,"images":1,"macros":0,"external_links":1,"defined_names":58,"comments":0,"pivot_tables":0},"unopened":[],"bounds":{"document_bytes":16777216,"sheet_cells":100000,"run_cost":"one","rows_first":2000,"rows_last":500,"rows_between":2000,"halvings":0,"cell_chars":16384,"cell_head_chars":4096},"cells_cut":0,"cells_raw":0,"read":"whole","date_system":"1900"}

{"sheet":"ITEM 2 - SERVIÇO","index":0,"n_rows":12,"n_cols":8,"rows_kept":12,"cut":false,"hidden":false,"merged":[[5,0,5,7],[9,1,9,4]]}
["EBI: EXECUÇÃO DE SERVIÇOS DE PAVIMENTAÇÃO EM BLOCO DE CONCRETO INTERTRAVADO",{"$nulls":5},"DATA BASE: "]
["LOCAL: MUNICÍPIOS DIVERSOS, ESTADO DE SERGIPE",{"$nulls":5},"BDI:",{"$f":"' BDI'!D31","v":0}]
[{"$nulls":6},"BDI DIF:",{"$f":"' BDI DIF'!D31","v":0}]
[]
[]
["DOCUMENTO: PLANILHA ORÇAMENTÁRIA DE SERVIÇOS – RESUMO"]
[]
["ITEM","DESCRIÇÃO",null,null,null,"QUANTIDADE (M²)","PREÇO UNIT.","PREÇO TOTAL"]
[]
[2,"EXECUÇÃO DE SERVIÇOS DE PAVIMENTAÇÃO, EM BLOCO DE CONCRETO INTERTRAVADO, DE VIAS PÚBLICAS EM MUNICÍPIOS DIVERSOS DO ESTADO DE SERGIPE",null,null,null,120000,{"$f":"'Resumo do Orçamento'!H19","v":{"$error":"#REF!"}},{"$f":"TRUNC(F10*G10,2)","v":{"$error":"#REF!"}}]
[]
[{"$nulls":6},"TOTAL",{"$f":"SUM(H10:H11)","v":{"$error":"#REF!"}}]

{"sheet":"Resumo do Orçamento","index":1,"n_rows":19,"n_cols":8,"rows_kept":19,"cut":false,"hidden":false,"merged":[[14,1,14,5],[15,1,15,5],[10,1,10,5],[11,1,11,5],[0,5,0,7],[1,5,1,7],[4,0,4,7],[12,1,12,5],[13,1,13,5],[9,1,9,5],[6,1,6,5],[7,1,7,5],[8,1,8,5],[5,1,5,5]]}
[null,"Serviço","DATA-BASE","B.D.I.","B.D.I. DIF","Encargos Sociais"]
[null,"EBI: EXECUÇÃO DE SERVIÇOS DE PAVIMENTAÇÃO EM BLOCO DE CONCRETO INTERTRAVADO",null,{"$f":"' BDI'!D31","v":0},{"$f":"' BDI DIF'!D31","v":0}]
[]
[]
["Planilha Orçamentária Resumida"]
["Item","Descrição",{"$nulls":4},"Total","Peso (%)"]
[" 1 ","PROJETO EXECUTIVO",{"$nulls":4},{"$f":"'Orçamento Sintético'!J6","v":0},{"$f":"G7/$H$18","v":{"$error":"#DIV/0!"}}]
[" 2 ","MOBILIZAÇÃO, CANTEIRO E ADMINISTRAÇÃO LOCAL",{"$nulls":4},{"$f":"'Orçamento Sintético'!J13","v":0},{"$error":"#DIV/0!"}]
[" 3 ","SERVIÇOS PRELIMINARES",{"$nulls":4},{"$f":"'Orçamento Sintético'!J17","v":0},{"$error":"#DIV/0!"}]
[" 4 ","TERRAPLENAGEM",{"$nulls":4},{"$f":"'Orçamento Sintético'!J19","v":0},{"$error":"#DIV/0!"}]
[" 5 ","PAVIMENTAÇÃO",{"$nulls":4},{"$f":"'Orçamento Sintético'!J22","v":0},{"$error":"#DIV/0!"}]
[" 6 ","SINALIZAÇÃO",{"$nulls":4},{"$f":"'Orçamento Sintético'!J28","v":0},{"$error":"#DIV/0!"}]
[" 7 ","MEIO-FIO / SARJETA",{"$nulls":4},{"$f":"'Orçamento Sintético'!J32","v":0},{"$error":"#DIV/0!"}]
[" 8 ","SERVIÇOS COMPLEMENTARES",{"$nulls":4},{"$f":"'Orçamento Sintético'!J39","v":0},{"$error":"#DIV/0!"}]
[" 9 ","MOMENTO DE TRANSPORTE",{"$nulls":4},{"$f":"'Orçamento Sintético'!J41","v":0},{"$error":"#DIV/0!"}]
[" 10 ","DESMOBILIZAÇÃO",{"$nulls":4},{"$f":"'Orçamento Sintético'!J54","v":0},{"$error":"#DIV/0!"}]
[]
[{"$nulls":4},"Total",null,null,{"$f":"SUM(G7:G16)","v":0}]
[{"$nulls":4},"Total / m²",null,null,{"$f":"TRUNC(H18/#REF!,2)","v":{"$error":"#REF!"}}]

{"sheet":"Orçamento Sintético","index":2,"n_rows":57,"n_cols":11,"rows_kept":57,"cut":false,"hidden":false,"merged":[[56,0,56,2],[56,5,56,6],[56,8,56,10],[3,0,3,10],[0,4,0,5],[0,9,0,10],[1,4,1,5],[1,9,1,10]]}
[null,null,null,"Serviço","DATA-BASE",null,"B.D.I.","B.D.I. DIF",null,"Encargos Sociais"]
[null,null,null,"EBI: EXECUÇÃO DE SERVIÇOS DE PAVIMENTAÇÃO EM BLOCO DE CONCRETO INTERTRAVADO",null,null,{"$f":"' BDI'!D31","v":0},{"$f":"' BDI DIF'!D31","v":0}]
[]
["Orçamento Sintético"]
["Item","Código","Banco","Descrição","Und","Quant.","Valor Unit","BDI","Valor Unit com BDI","Total","Peso (%)"]
[" 1 ",null,null,"PROJETO EXECUTIVO",{"$nulls":5},{"$f":"SUBTOTAL(9,J7:J12)","v":0},{"$f":"J6/$I$57","v":{"$error":"#DIV/0!"}}]
[" 1.1 "," 12295 ","ORSE","Levantamento planialtimétrico semi-cadastral de vias km","km",2,null,{"$f":"$G$2","v":0},null,null,{"$f":"J7/$I$57","v":{"$error":"#DIV/0!"}}]
[" 1.2 "," 13586 ","ORSE","Projeto de terraplenagem e Geométrico de Vias Km","Km",2,null,{"$f":"$G$2","v":0},null,null,{"$error":"#DIV/0!"}]
[" 1.3 "," 13587 ","ORSE","Projeto de Pavimentação Km","Km",2,null,0,null,null,{"$error":"#DIV/0!"}]
[" 1.4 "," 11510 ","ORSE","Projeto de sinalização vertical e horizontal km","km",2,null,0,null,null,{"$error":"#DIV/0!"}]
[" 1.5 "," CODEVASF  001 ","Próprio","Ensaios geotécnicos de vias","km",2,null,0,null,null,{"$error":"#DIV/0!"}]
[" 1.6 "," CODEVASF  272 ","Próprio","Ensaios geotécnicos de jazidas","km",2,null,0,null,null,{"$error":"#DIV/0!"}]
[" 2 ",null,null,"MOBILIZAÇÃO, CANTEIRO E ADMINISTRAÇÃO LOCAL",{"$nulls":5},{"$f":"SUBTOTAL(9,J14:J16)","v":0},{"$error":"#DIV/0!"}]
[" 2.1 "," CODEVASF  061 ","Próprio","MOBILIZAÇÃO/DESMOBILIZAÇÃO - EBI","km",90,null,{"$f":"$G$2","v":0},null,null,{"$error":"#DIV/0!"}]
[" 2.2 "," CODEVASF  065 ","Próprio","CANTEIRO DE OBRAS - EBI","UND",1,null,{"$f":"$G$2","v":0},null,null,{"$error":"#DIV/0!"}]
[" 2.3 "," CODEVASF  046 ","Próprio","ADMINISTRAÇÃO LOCAL - EBI","CJ",1,null,0,null,null,{"$error":"#DIV/0!"}]
[" 3 ",null,null,"SERVIÇOS PRELIMINARES",{"$nulls":5},{"$f":"SUBTOTAL(9,J18)","v":0},{"$error":"#DIV/0!"}]
[" 3.1 "," 74209/001 ","SINAPI","PLACA DE OBRA EM CHAPA DE ACO GALVANIZADO","m²",6.48,null,0,null,null,{"$error":"#DIV/0!"}]
[" 4 ",null,null,"TERRAPLENAGEM",{"$nulls":5},{"$f":"SUBTOTAL(9,J20:J21)","v":0},{"$error":"#DIV/0!"}]
[" 4.1 "," 5502114 ","SICRO3","Escavação, carga e transporte de material de 1ª categoria - DMT de 1.000 a 1.200 m - caminho de serviço em leito natural -com escavadeira e caminhão basculante de 14 m³","m³",3222.4,null,0,null,null,{"$error":"#DIV/0!"}]
[" 4.2 "," 4413942 ","SICRO3","Espalhamento de material em bota-fora","m³",3222.4,null,0,null,null,{"$error":"#DIV/0!"}]
[" 5 ",null,null,"PAVIMENTAÇÃO",{"$nulls":5},{"$f":"SUBTOTAL(9,J23:J27)","v":0},{"$error":"#DIV/0!"}]
[" 5.1 "," 4011209 ","SICRO3","Regularização do subleito","m²",8480,null,0,null,null,{"$error":"#DIV/0!"}]
[" 5.2 "," 4011227 ","SICRO3","Sub-base de solo estabilizado granulometricamente sem mistura com material de jazida","m³",1526.4,null,0,null,null,{"$error":"#DIV/0!"}]
[" 5.3 "," 92397 ","SINAPI","EXECUÇÃO DE PAVIMENTO EM PISO INTERTRAVADO, COM BLOCO RETANGULAR COR NATURAL DE 20 X 10 CM, ESPESSURA 6 CM. AF_10/2022","m²",7200,null,0,null,null,{"$error":"#DIV/0!"}]
[" 5.4 "," 3516 ","ORSE","Material para sub-base","m³",1603,null,{"$f":"$H$2","v":0},null,null,{"$error":"#DIV/0!"}]
[" 5.5 "," 00036155 ","SINAPI","BLOQUETE/PISO INTERTRAVADO DE CONCRETO - MODELO RETANGULAR, 20 CM X 10 CM, E = 6 CM, RESISTENCIA DE 35 MPA (NBR 9781), COR NATURAL","m²",7200,null,{"$f":"$H$2","v":0},null,null,{"$error":"#DIV/0!"}]
[" 6 ",null,null,"SINALIZAÇÃO",{"$nulls":5},{"$f":"SUBTOTAL(9,J29:J31)","v":0},{"$error":"#DIV/0!"}]
[" 6.1 "," 5213440 ","SICRO3","Placa de regulamentação em aço D = 0,60 m - película retrorrefletiva tipo I + SI - fornecimento e implantação","un",10,null,{"$f":"$G$2","v":0},null,null,{"$error":"#DIV/0!"}]
[" 6.2 "," 5213863 ","SICRO3","Suporte metálico galvanizado para placa de advertência ou regulamentação - lado ou diâmetro de 0,60 m - fornecimento e implantação","un",10,null,0,null,null,{"$error":"#DIV/0!"}]
[" 6.3 "," 5213400 ","SICRO3","Pintura de faixa com tinta acrílica - espessura de 0,4 mm","m²",800,null,0,null,null,{"$error":"#DIV/0!"}]
[" 7 ",null,null,"MEIO-FIO / SARJETA",{"$nulls":5},{"$f":"SUBTOTAL(9,J33:J38)","v":0},{"$error":"#DIV/0!"}]
[" 7.1 "," 2497 ","ORSE","Escavação manual de vala ou cava em material de 1ª categoria, profundidade até 1,50m","m³",660,null,0,null,null,{"$error":"#DIV/0!"}]
[" 7.2 "," CODEVASF  042 ","Próprio","EXECUÇÃO DE BASE DE CONCRETO MAGRO P/ SARJETA E MEIO-FIO, MOLDADA  IN LOCO, 40 CM BASE X 10 CM ALTURA.","M",4000,null,0,null,null,{"$error":"#DIV/0!"}]
[" 7.3 "," 4555 ","ORSE","Meio-fio pré moldado de concreto simples (0,12 x 0,30 x 1,00m), rejuntado com argamassa de cimento e areia no traço 1:3","m",4000,null,0,null,null,{"$error":"#DIV/0!"}]
[" 7.4 "," CODEVASF  043 ","Próprio","EXECUÇÃO DE BLOCO DE CONCRETO MAGRO P/ ESCORAMENTO DE MEIO-FIO, MOLDADA  IN LOCO, 25 CM X 25 CM X 25 CM.","UND",2000,null,0,null,null,{"$error":"#DIV/0!"}]
[" 7.5 "," CODEVASF  037 ","Próprio","EXECUÇÃO DE SARJETA DE CONCRETO, MOLDADA  IN LOCO , 20 CM BASE X 10-12 CM ALTURA","M",4000,null,0,null,null,{"$error":"#DIV/0!"}]
[" 7.6 "," 93382 ","SINAPI","REATERRO MANUAL DE VALAS COM COMPACTAÇÃO MECANIZADA. AF_04/2016","m³",468.75,null,0,null,null,{"$error":"#DIV/0!"}]
[" 8 ",null,null,"SERVIÇOS COMPLEMENTARES",{"$nulls":5},{"$f":"SUBTOTAL(9,J40)","v":0},{"$error":"#DIV/0!"}]
[" 8.1 "," 00000007 ","Próprio","Recuperação de ramal predial","m",100,null,0,null,null,{"$error":"#DIV/0!"}]
[" 9 ",null,null,"MOMENTO DE TRANSPORTE",{"$nulls":5},{"$f":"SUBTOTAL(9,J42:J53)","v":0},{"$error":"#DIV/0!"}]
[" 9.1 ",null,null,"MATERIAL PARA SUB-BASE",{"$nulls":5},{"$f":"SUBTOTAL(9,J43:J44)","v":0},{"$error":"#DIV/0!"}]
[" 9.1.1 "," 5915321 ","SICRO3","Transporte com caminhão basculante de 14 m³ - rodovia pavimentada","tkm",144244.79999999999,null,{"$f":"$G$2","v":0},null,null,{"$error":"#DIV/0!"}]
[" 9.1.2 "," 5915320 ","SICRO3","Transporte com caminhão basculante de 14 m³ - rodovia em revestimento primário","tkm",36061.199999999997,null,0,null,null,{"$error":"#DIV/0!"}]
[" 9.2 ",null,null,"MEIO-FIO",{"$nulls":5},{"$f":"SUBTOTAL(9,J46:J47)","v":0},{"$error":"#DIV/0!"}]
[" 9.2.1 "," 5915014 ","SICRO3","Transporte com caminhão carroceria com capacidade de 11 t e com guindauto de 45 t.m - rodovia pavimentada","tkm",34560,null,0,null,null,{"$error":"#DIV/0!"}]
[" 9.2.2 "," 5915013 ","SICRO3","Transporte com caminhão carroceria com capacidade de 11 t e com guindauto de 45 t.m - rodovia em revestimento primário","tkm",3456,null,0,null,null,{"$error":"#DIV/0!"}]
[" 9.3 ",null,null,"AREIA/PÓ DE PEDRA/BRITA",{"$nulls":5},{"$f":"SUBTOTAL(9,J49:J50)","v":0},{"$error":"#DIV/0!"}]
[" 9.3.1 "," 5915321 ","SICRO3","Transporte com caminhão basculante de 14 m³ - rodovia pavimentada","tkm",134552.51999999999,null,0,null,null,{"$error":"#DIV/0!"}]
[" 9.3.2 "," 5915320 ","SICRO3","Transporte com caminhão basculante de 14 m³ - rodovia em revestimento primário","tkm",13455.25,null,0,null,null,{"$error":"#DIV/0!"}]
[" 9.4 ",null,null,"BLOQUETE",{"$nulls":5},{"$f":"SUBTOTAL(9,J52:J53)","v":0},{"$error":"#DIV/0!"}]
[" 9.4.1 "," 5915014 ","SICRO3","Transporte com caminhão carroceria com capacidade de 11 t e com guindauto de 45 t.m - rodovia pavimentada","tkm",93600,null,0,null,null,{"$error":"#DIV/0!"}]
[" 9.4.2 "," 5915013 ","SICRO3","Transporte com caminhão carroceria com capacidade de 11 t e com guindauto de 45 t.m - rodovia em revestimento primário","tkm",9360,null,0,null,null,{"$error":"#DIV/0!"}]
[" 10 ",null,null,"DESMOBILIZAÇÃO",{"$nulls":5},{"$f":"SUBTOTAL(9,J55)","v":0},{"$error":"#DIV/0!"}]
[" 10.1 "," CODEVASF  061 ","Próprio","MOBILIZAÇÃO/DESMOBILIZAÇÃO - EBI","km",90,null,0,null,null,{"$error":"#DIV/0!"}]
[]
[{"$nulls":5},"Total Geral",null,null,{"$f":"SUBTOTAL(9,J6:J55)","v":0}]

{"sheet":"Cronograma Físico-financeiro","index":3,"n_rows":18,"n_cols":16,"rows_kept":18,"cut":false,"hidden":false,"merged":[[0,0,0,15],[1,0,1,15],[5,14,5,15],[3,0,3,15],[5,12,5,13],[5,8,5,9],[5,10,5,11],[5,4,5,5],[5,6,5,7]]}
[{"$f":"'ITEM 2 - SERVIÇO'!A1","v":"EBI: EXECUÇÃO DE SERVIÇOS DE PAVIMENTAÇÃO EM BLOCO DE CONCRETO INTERTRAVADO"}]
["LOCAL: MUNICÍPIOS DIVERSOS, ESTADO DE SERGIPE"]
[]
["DOCUMENTO: CRONOGRAMA FÍSICO-FINANCEIRO"]
[]
["ITEM","DESCRIÇÃO","QUANTIDADE","PREÇO TOTAL"," 1.º PERÍODO ",null," 2.º PERÍODO ",null,"3.º PERÍODO ",null,"4.º PERÍODO ",null,"5.º PERÍODO ",null,"TOTAL"]
[{"$nulls":4},"PERCENTUAL","FINANCEIRO","PERCENTUAL","FINANCEIRO","PERCENTUAL","FINANCEIRO","PERCENTUAL","FINANCEIRO","PERCENTUAL","FINANCEIRO","PERCENTUAL","FINANCEIRO"]
[1,"PROJETO EXECUTIVO",1,{"$f":"'Resumo do Orçamento'!G7","v":0},0.6,{"$f":"E8*$D8","v":0},0.4,{"$f":"G8*$D8","v":0},0,{"$f":"I8*$D8","v":0},0,{"$f":"K8*$D8","v":0},0,{"$f":"M8*$D8","v":0},{"$f":"E8+G8+I8+K8+M8","v":1},{"$f":"O8*$D8","v":0}]
[2,"MOBILIZAÇÃO, CANTEIRO E ADMINISTRAÇÃO LOCAL",1,{"$f":"'Resumo do Orçamento'!G8","v":0},0,0,0,0,0.1,0,0.59,0,0.31,0,{"$f":"E9+G9+I9+K9+M9","v":1},0]
[3,"SERVIÇOS PRELIMINARES",1,{"$f":"'Resumo do Orçamento'!G9","v":0},0,0,0,0,1,0,0,0,0,0,1,0]
[4,"TERRAPLENAGEM",1,{"$f":"'Resumo do Orçamento'!G10","v":0},0,0,0,0,0.5,0,0.5,0,0,0,1,0]
[5,"PAVIMENTAÇÃO",1,{"$f":"'Resumo do Orçamento'!G11","v":0},0,0,0,0,0.1,0,0.5,0,0.4,0,1,0]
[6,"SINALIZAÇÃO",1,{"$f":"'Resumo do Orçamento'!G12","v":0},0,0,0,0,0,0,0,0,1,0,1,0]
[7,"MEIO-FIO / SARJETA",1,{"$f":"'Resumo do Orçamento'!G13","v":0},0,0,0,0,0.1,0,0.8,0,0.1,0,1,0]
[8,"SERVIÇOS COMPLEMENTARES",1,{"$f":"'Resumo do Orçamento'!G14","v":0},0,0,0,0,0,0,1,0,0,0,1,0]
[9,"MOMENTO DE TRANSPORTE",1,{"$f":"'Resumo do Orçamento'!G15","v":0},0,0,0,0,0.1,0,0.7,0,0.2,0,1,0]
[10,"DESMOBILIZAÇÃO",1,{"$f":"'Resumo do Orçamento'!G16","v":0},0,0,0,0,0,0,0,0,1,0,1,0]
[null,null,"TOTAL",{"$f":"SUM(D8:D17)","v":0},{"$f":"F18/$D$18","v":{"$error":"#DIV/0!"}},{"$f":"SUM(F8:F17)","v":0},{"$f":"H18/$D$18","v":{"$error":"#DIV/0!"}},{"$f":"SUM(H8:H17)","v":0},{"$f":"J18/$D$18","v":{"$error":"#DIV/0!"}},{"$f":"SUM(J8:J17)","v":0},{"$f":"L18/$D$18","v":{"$error":"#DIV/0!"}},{"$f":"SUM(L8:L17)","v":0},{"$f":"N18/$D$18","v":{"$error":"#DIV/0!"}},{"$f":"SUM(N8:N17)","v":0},{"$f":"P18/$D$18","v":{"$error":"#DIV/0!"}},{"$f":"SUM(P8:P17)","v":0}]

{"sheet":"Curva ABC de Serviços","index":4,"n_rows":38,"n_cols":11,"rows_kept":38,"cut":false,"hidden":false,"merged":[[2,2,2,4],[3,2,3,4],[4,0,4,9],[0,7,0,9],[1,7,1,9]]}
[null,null,"Serviço","B.D.I.","B.D.I. DIF",null,null,"Encargos Sociais"]
[null,null,"EBI: EXECUÇÃO DE SERVIÇOS DE PAVIMENTAÇÃO EM BLOCO DE CONCRETO INTERTRAVADO",{"$f":"' BDI'!D31","v":0},{"$f":"' BDI DIF'!D31","v":0}]
[]
[]
["Curva ABC de Serviços"]
["Código","Banco","Descrição","Und","Quant.","Custo  Unit","Valor  Unit","Total","Peso (%)","Peso Acumulado (%)","Índice de Reajustamento"]
[" 00036155 ","SINAPI","BLOQUETE/PISO INTERTRAVADO DE CONCRETO - MODELO RETANGULAR, 20 CM X 10 CM, E = 6 CM, RESISTENCIA DE 35 MPA (NBR 9781), COR NATURAL","m²","7.200,0",null,{"$f":"TRUNC(F7*(1+$E$2),2)","v":0},{"$f":"TRUNC(E7*G7,2)","v":0},null,null,"PAVIMENTOS CONCRETO CIMENTO PORTLAND"]
[" 5915014 ","SICRO3","Transporte com caminhão carroceria com capacidade de 11 t e com guindauto de 45 t.m - rodovia pavimentada","tkm","128.160,0",null,{"$f":"TRUNC(F8*(1+$D$2),2)","v":0},{"$f":"TRUNC(E8*G8,2)","v":0},null,null,"PAVIMENTAÇÃO"]
[" 4555 ","ORSE","Meio-fio pré moldado de concreto simples (0,12 x 0,30 x 1,00m), rejuntado com argamassa de cimento e areia no traço 1:3","m","4.000,0",null,0,0,null,null,"DRENAGEM"]
[" 5915321 ","SICRO3","Transporte com caminhão basculante de 14 m³ - rodovia pavimentada","tkm","278.797,32",null,0,0,null,null,"PAVIMENTAÇÃO"]
[" 92397 ","SINAPI","EXECUÇÃO DE PAVIMENTO EM PISO INTERTRAVADO, COM BLOCO RETANGULAR COR NATURAL DE 20 X 10 CM, ESPESSURA 6 CM. AF_10/2022","m²","7.200,0",null,0,0,null,null,"PAVIMENTOS CONCRETO CIMENTO PORTLAND"]
[" CODEVASF  042 ","Próprio","EXECUÇÃO DE BASE DE CONCRETO MAGRO P/ SARJETA E MEIO-FIO, MOLDADA  IN LOCO, 40 CM BASE X 10 CM ALTURA.","M","4.000,0",null,0,0,null,null,"DRENAGEM"]
[" CODEVASF  046 ","Próprio","ADMINISTRAÇÃO LOCAL - EBI","CJ","1,0",null,0,0,null,null,"ADMINISTRAÇÃO LOCAL"]
[" CODEVASF  037 ","Próprio","EXECUÇÃO DE SARJETA DE CONCRETO, MOLDADA  IN LOCO , 20 CM BASE X 10-12 CM ALTURA","M","4.000,0",null,0,0,null,null,"DRENAGEM"]
[" CODEVASF  001 ","Próprio","Ensaios geotécnicos de vias","km","2,0",null,{"$f":"TRUNC(F15*(1+$E$2),2)","v":0},0,null,null,"CONSULTORIA (SUPERVISÃO E PROJETOS)"]
[" CODEVASF  043 ","Próprio","EXECUÇÃO DE BLOCO DE CONCRETO MAGRO P/ ESCORAMENTO DE MEIO-FIO, MOLDADA  IN LOCO, 25 CM X 25 CM X 25 CM.","UND","2.000,0",null,{"$f":"TRUNC(F16*(1+$D$2),2)","v":0},0,null,null,"DRENAGEM"]
[" 2497 ","ORSE","Escavação manual de vala ou cava em material de 1ª categoria, profundidade até 1,50m","m³","660,0",null,0,0,null,null,"DRENAGEM"]
[" 5915320 ","SICRO3","Transporte com caminhão basculante de 14 m³ - rodovia em revestimento primário","tkm","49.516,45",null,0,0,null,null,"PAVIMENTAÇÃO"]
[" 5213400 ","SICRO3","Pintura de faixa com tinta acrílica - espessura de 0,4 mm","m²","800,0",null,0,0,null,null,"SINALIZAÇÃO HORIZONTAL"]
[" 5502114 ","SICRO3","Escavação, carga e transporte de material de 1ª categoria - DMT de 1.000 a 1.200 m - caminho de serviço em leito natural -com escavadeira e caminhão basculante de 14 m³","m³","3.222,4",null,0,0,null,null,"TERRAPLENAGEM"]
[" 5915013 ","SICRO3","Transporte com caminhão carroceria com capacidade de 11 t e com guindauto de 45 t.m - rodovia em revestimento primário","tkm","12.816,0",null,0,0,null,null,"PAVIMENTAÇÃO"]
[" CODEVASF  065 ","Próprio","CANTEIRO DE OBRAS - EBI","UND","1,0",null,0,0,null,null,"ADMINISTRAÇÃO LOCAL"]
[" 13586 ","ORSE","Projeto de terraplenagem e Geométrico de Vias Km","Km","2,0",null,{"$f":"TRUNC(F23*(1+$E$2),2)","v":0},0,null,null,"CONSULTORIA (SUPERVISÃO E PROJETOS)"]
[" 3516 ","ORSE","Material para sub-base","m³","1.603,0",null,{"$f":"TRUNC(F24*(1+$E$2),2)","v":0},0,null,null,"PAVIMENTAÇÃO"]
[" 4011227 ","SICRO3","Sub-base de solo estabilizado granulometricamente sem mistura com material de jazida","m³","1.526,4",null,{"$f":"TRUNC(F25*(1+$D$2),2)","v":0},0,null,null,"PAVIMENTAÇÃO"]
[" CODEVASF  061 ","Próprio","MOBILIZAÇÃO/DESMOBILIZAÇÃO - EBI","km","180,0",null,{"$f":"TRUNC(F26*(1+$D$2),2)","v":0},0,null,null,"MOBILIZAÇÃO E DESMOBILIZAÇÃO"]
[" 93382 ","SINAPI","REATERRO MANUAL DE VALAS COM COMPACTAÇÃO MECANIZADA. AF_04/2016","m³","468,75",null,{"$f":"TRUNC(F27*(1+$D$2),2)","v":0},0,null,null,"DRENAGEM"]
[" 13587 ","ORSE","Projeto de Pavimentação Km","Km","2,0",null,{"$f":"TRUNC(F28*(1+$E$2),2)","v":0},0,null,null,"CONSULTORIA (SUPERVISÃO E PROJETOS)"]
[" 11510 ","ORSE","Projeto de sinalização vertical e horizontal km","km","2,0",null,{"$f":"TRUNC(F29*(1+$E$2),2)","v":0},0,null,null,"CONSULTORIA (SUPERVISÃO E PROJETOS)"]
[" 4011209 ","SICRO3","Regularização do subleito","m²","8.480,0",null,{"$f":"TRUNC(F30*(1+$D$2),2)","v":0},0,null,null,"PAVIMENTAÇÃO"]
[" 12295 ","ORSE","Levantamento planialtimétrico semi-cadastral de vias km","km","2,0",null,{"$f":"TRUNC(F31*(1+$E$2),2)","v":0},0,null,null,"CONSULTORIA (SUPERVISÃO E PROJETOS)"]
[" 4413942 ","SICRO3","Espalhamento de material em bota-fora","m³","3.222,4",null,{"$f":"TRUNC(F32*(1+$D$2),2)","v":0},0,null,null,"TERRAPLENAGEM"]
[" CODEVASF  272 ","Próprio","Ensaios geotécnicos de jazidas","km","2,0",null,{"$f":"TRUNC(F33*(1+$E$2),2)","v":0},0,null,null,"CONSULTORIA (SUPERVISÃO E PROJETOS)"]
[" 5213863 ","SICRO3","Suporte metálico galvanizado para placa de advertência ou regulamentação - lado ou diâmetro de 0,60 m - fornecimento eimplantação","un","10,0",null,{"$f":"TRUNC(F34*(1+$D$2),2)","v":0},0,null,null,"SINALIZAÇÃO VERTICAL"]
[" 5213440 ","SICRO3","Placa de regulamentação em aço D = 0,60 m - película retrorrefletiva tipo I + SI - fornecimento e implantação","un","10,0",null,{"$f":"TRUNC(F35*(1+$D$2),2)","v":0},0,null,null,"SINALIZAÇÃO VERTICAL"]
[" 74209/001 ","SINAPI","PLACA DE OBRA EM CHAPA DE ACO GALVANIZADO","m²","6,48",null,{"$f":"TRUNC(F36*(1+$D$2),2)","v":0},0,null,null,"SINALIZAÇÃO VERTICAL"]
[" 00000007 ","Próprio","Recuperação de ramal predial","m","100,0",null,{"$f":"TRUNC(F37*(1+$D$2),2)","v":0},0,null,null,"ÍNDICE NACIONAL DE CUSTO DA CONSTRUÇÃO"]
[{"$nulls":7},{"$f":"SUM(H7:H37)","v":0}]

{"sheet":" BDI","index":5,"n_rows":31,"n_cols":4,"rows_kept":31,"cut":false,"hidden":false,"merged":[[3,0,3,3],[5,0,5,3],[13,0,13,3],[30,0,30,1]]}
[]
[{"$f":"'ITEM 2 - SERVIÇO'!A1","v":"EBI: EXECUÇÃO DE SERVIÇOS DE PAVIMENTAÇÃO EM BLOCO DE CONCRETO INTERTRAVADO"}]
[]
["DOCUMENTO: DETALHAMENTO DA BONIFICAÇÃO E DESPESAS INDIRETAS"]
[]
["LEGENDA"]
["BDI =","Bonificação e Despesas Indiretas"]
["AC =","Administração Central"]
["SG=","Seguros e garantias"]
["DF =","Despesas Financeiras"]
["R =","Riscos"]
["L =","Lucro"]
["I =","Impostos"]
["DETALHAMENTO"]
["ITEM","DESCRIÇÃO","% sobre PV","% sobre CD"]
[]
[1,"DESPESAS INDIRETAS",{"$f":"SUBTOTAL(9,C18:C21)","v":0},{"$f":"SUBTOTAL(9,D18:D21)","v":0}]
["1.1","Administração Central",null,{"$f":"(1/(1-$C$31))*C18","v":0}]
["1.2","Seguros e garantias",null,{"$f":"(1/(1-$C$31))*C19","v":0}]
["1.3","Riscos",null,{"$f":"(1/(1-$C$31))*C20","v":0}]
["1.4","Despesas Financeiras",null,{"$f":"(1/(1-$C$31))*C21","v":0}]
[]
[2,"BENEFÍCIOS",{"$f":"SUBTOTAL(9,C24)","v":0},{"$f":"SUBTOTAL(9,D24)","v":0}]
["2.1","Lucro",null,{"$f":"(1/(1-$C$31))*C24","v":0}]
[]
[3,"TRIBUTOS",{"$f":"SUBTOTAL(9,C27:C30)","v":0},{"$f":"SUBTOTAL(9,D27:D30)","v":0}]
["3.1","PIS",null,{"$f":"(1/(1-$C$31))*C27","v":0}]
["3.2","COFINS",null,{"$f":"(1/(1-$C$31))*C28","v":0}]
["3.3","ISS",null,0]
["3.4","IPRB",null,0]
["BDI",null,{"$f":"SUBTOTAL(9,C17:C30)","v":0},{"$f":"SUBTOTAL(9,D17:D30)","v":0}]

{"sheet":" BDI DIF","index":6,"n_rows":31,"n_cols":4,"rows_kept":31,"cut":false,"hidden":false,"merged":[[3,0,3,3],[5,0,5,3],[13,0,13,3],[30,0,30,1]]}
[]
[{"$f":"'ITEM 2 - SERVIÇO'!A1","v":"EBI: EXECUÇÃO DE SERVIÇOS DE PAVIMENTAÇÃO EM BLOCO DE CONCRETO INTERTRAVADO"}]
[]
["DOCUMENTO: DETALHAMENTO DA BONIFICAÇÃO E DESPESAS INDIRETAS - DIFERENCIADO"]
[]
["LEGENDA"]
["BDI =","Bonificação e Despesas Indiretas"]
["AC =","Administração Central"]
["SG=","Seguros e garantias"]
["DF =","Despesas Financeiras"]
["R =","Riscos"]
["L =","Lucro"]
["I =","Impostos"]
["DETALHAMENTO"]
["ITEM","DESCRIÇÃO","% sobre PV","% sobre CD"]
[]
[1,"DESPESAS INDIRETAS",{"$f":"SUBTOTAL(9,C18:C21)","v":0},{"$f":"SUBTOTAL(9,D18:D21)","v":0}]
["1.1","Administração Central",null,{"$f":"(1/(1-$C$31))*C18","v":0}]
["1.2","Seguros e garantias",null,{"$f":"(1/(1-$C$31))*C19","v":0}]
["1.3","Riscos",null,{"$f":"(1/(1-$C$31))*C20","v":0}]
["1.4","Despesas Financeiras",null,{"$f":"(1/(1-$C$31))*C21","v":0}]
[]
[2,"BENEFÍCIOS",{"$f":"SUBTOTAL(9,C24)","v":0},{"$f":"SUBTOTAL(9,D24)","v":0}]
["2.1","Lucro",null,{"$f":"(1/(1-$C$31))*C24","v":0}]
[]
[3,"TRIBUTOS",{"$f":"SUBTOTAL(9,C27:C30)","v":0},{"$f":"SUBTOTAL(9,D27:D30)","v":0}]
["3.1","PIS",null,{"$f":"(1/(1-$C$31))*C27","v":0}]
["3.2","COFINS",null,{"$f":"(1/(1-$C$31))*C28","v":0}]
["3.3","ISS",null,{"$f":"(1/(1-$C$31))*C29","v":0}]
["3.4","IPRB",null,{"$f":"(1/(1-$C$31))*C30","v":0}]
["BDI DIFERENCIADO",null,{"$f":"SUBTOTAL(9,C17:C30)","v":0},{"$f":"TRUNC(SUBTOTAL(9,D17:D30),4)","v":0}]

{"sheet":"Encargos Sociais","index":7,"n_rows":43,"n_cols":4,"rows_kept":43,"cut":false,"hidden":false,"merged":[[41,0,41,3],[42,0,42,1],[7,0,7,3],[5,0,5,3],[18,0,18,3],[30,0,30,3],[37,0,37,3]]}
[{"$f":"'ITEM 2 - SERVIÇO'!A1","v":"EBI: EXECUÇÃO DE SERVIÇOS DE PAVIMENTAÇÃO EM BLOCO DE CONCRETO INTERTRAVADO"}]
["LOCAL: MUNICÍPIOS DIVERSOS, ESTADO DE SERGIPE"]
[]
[]
[]
["ENCARGOS SOCIAIS SOBRE A MÃO DE OBRA - SEM DESONERAÇÃO"]
["CÓDIGO","DESCRIÇÃO","HORISTA %","MENSALISTA %"]
["GRUPO A"]
["A1","INSS"]
["A2","SESI"]
["A3","SENAI"]
["A4","INCRA"]
["A5","SEBRAE"]
["A6","Salário Educação"]
["A7","Seguro Contra Acidentes de Trabalho"]
["A8","FGTS"]
["A9","SECONCI"]
["A","TOTAL",{"$f":"SUM(C9:C17)","v":0},{"$f":"SUM(D9:D17)","v":0}]
["GRUPO B"]
["B1","Repouso Semanal Remunerado"]
["B2","Feriados"]
["B3","Auxílio-enfermidade"]
["B4","13° salário"]
["B5","Licença-paternidade"]
["B6","Faltas Justificadas"]
["B7","Dias de chuva"]
["B8","Auxílio Acidente de Trabalho"]
["B9","Férias Gozadas"]
["B10","Salário Maternidade"]
["B","TOTAL",{"$f":"SUM(C20:C29)","v":0},{"$f":"SUM(D20:D29)","v":0}]
["GRUPO C"]
["C1","Aviso Prévio Indenizado"]
["C2","Aviso Prévio Trabalhado"]
["C3","Férias Indenizadas"]
["C4","Depósito Rescisão Sem Justa Causa"]
["C5","Indenização Adicional"]
["C","TOTAL",{"$f":"SUM(C32:C36)","v":0},{"$f":"SUM(D32:D36)","v":0}]
["GRUPO D"]
["D1","Reincidência de A sobre B"]
["D2","Reincidência de Grupo A sobre Aviso Prévio Trabalhado e Reincidência do FGTS sobre Aviso Prévio Indenizado"]
["D","TOTAL",{"$f":"SUM(C39:C40)","v":0},{"$f":"SUM(D39:D40)","v":0}]
[]
["T O T A L (%)",null,{"$f":"C18+C30+C37+C41","v":0},{"$f":"D18+D30+D37+D41","v":0}]